bitfinex/quotes_ETHUSD_20241109
["timestamp","ask_amount","ask_price","bid_price","bid_amount"]
[1731150841938,0.779,3049.9,3049.5,0.53398393]
[1731150842156,0.779,3049.9,3049.5,0.03290925]
[1731150842326,0.779,3049.9,3049.4,0.79]
[1731150842661,0.779,3049.9,3049.5,0.09845748]
[1731150843025,0.779,3049.9,3049.5,0.03288056]
[1731150843739,0.779,3049.9,3049.5,0.09845747]
[1731150844330,0.779,3049.9,3049.5,0.03288056]
[1731150844970,0.779,3049.9,3049.5,0.09845746]
[1731150845143,0.0169,3050.0,3049.6,0.21419043]
[1731150845460,0.0169,3050.0,3049.7,0.03283919]
[1731150845670,0.0169,3050.0,3049.7,0.09841282]
[1731150845844,0.0169,3050.0,3049.7,0.03283919]
[1731150846370,0.0169,3050.0,3049.8,0.79]
[1731150846786,0.0169,3050.0,3049.9,0.03273725]
[1731150846965,0.0169,3050.0,3049.9,0.31247938]
[1731150848578,0.01091574,3050.0,3049.9,0.31247938]
[1731150848965,0.01091574,3050.0,3049.9,0.24691257]
[1731150849883,0.78821574,3050.0,3049.9,0.03273725]
[1731150850381,0.78821574,3050.0,3049.9,0.0327456]
[1731150850586,0.78821574,3050.0,3049.3,1.2534468]
[1731150850757,0.78821574,3050.0,3049.4,0.03293675]
[1731150851268,0.78821574,3050.0,3049.5,0.42863836]
[1731150851580,0.78821574,3050.0,3049.6,0.09842385]
[1731150852592,0.01091574,3050.0,3049.7,1.2534468]
[1731150852889,0.01091574,3050.0,3049.8,0.09831706]
[1731150853510,0.57821574,3050.2,3049.8,0.09831706]
[1731150853653,0.57821574,3050.2,3049.8,0.03274836]
[1731150853976,0.57821574,3050.2,3049.8,0.06556736]
[1731150854175,0.57821574,3050.2,3049.9,0.03265076]
[1731150854550,0.57821574,3050.2,3049.7,1.2534468]
[1731150854992,0.57821574,3050.2,3049.8,0.03266784]
[1731150855164,0.57821574,3050.2,3049.7,1.2534468]
[1731150855369,0.57821574,3050.2,3049.8,0.03266784]
[1731150855676,0.57821574,3050.2,3049.7,1.2534468]
[1731150855901,0.57821574,3050.2,3049.9,0.03261687]
[1731150856097,0.57821574,3050.2,3049.8,0.03266784]
[1731150856283,0.57821574,3050.2,3050.0,0.0325659]
[1731150856484,0.57821574,3050.2,3049.9,0.03261687]
[1731150856675,0.57821574,3050.2,3050.1,0.03251494]
[1731150857296,0.7773,3050.6,3049.7,1.2534468]
[1731150857503,0.30676534,3050.5,3050.1,0.03251494]
[1731150857660,0.7773,3050.6,3050.1,0.03251494]
[1731150857866,0.30676824,3050.5,3049.7,1.2534468]
[1731150858086,0.7773,3050.6,3050.2,0.03246397]
[1731150858293,0.30680217,3050.5,3049.7,1.2534468]
[1731150858491,0.7773,3050.6,3050.3,0.03241302]
[1731150858801,0.0425751,3050.5,3049.7,1.2534468]
[1731150859178,0.0425751,3050.5,3049.8,0.03266784]
[1731150859378,0.7773,3050.6,3049.8,0.03266784]
[1731150859794,0.7773,3050.6,3049.8,0.09823455]
[1731150861201,0.7773,3050.6,3049.9,0.06556671]
[1731150861510,0.7773,3050.6,3050.0,0.0325659]
[1731150862001,0.0425751,3050.8,3050.0,0.0325659]
[1731150862002,0.0425751,3050.8,3050.2,0.765]
[1731150862179,1.02574524,3051.3,3050.6,0.765]
[1731150862379,0.8128,3051.4,3050.9,1.2534468]
[1731150862593,0.8128,3051.7,3051.0,0.03201178]
[1731150862887,0.8128,3051.7,3051.1,1.2534468]
[1731150863488,0.8128,3051.7,3051.2,0.03190992]
[1731150864420,0.8128,3052.1,3051.3,1.2534468]
[1731150864589,0.8128,3052.1,3051.2,0.23694559]
[1731150864590,0.8128,3052.1,3051.5,1.2534468]
[1731150864788,0.8128,3052.1,3051.6,0.03170624]
[1731150864977,0.8128,3052.1,3051.5,1.2534468]
[1731150865211,0.8128,3052.1,3051.6,0.03135095]
[1731150865393,0.8128,3052.6,3051.9,1.2534468]
[1731150865597,0.8128,3052.6,3052.0,0.09667122]
[1731150867528,0.8128,3052.6,3052.0,0.03114733]
[1731150867811,0.0425751,3052.5,3051.6,0.765]
[1731150868024,0.0425751,3052.5,3052.1,0.0311275]
[1731150868180,0.0425751,3052.5,3051.6,1.26684468]
[1731150868513,0.0425751,3052.5,3051.7,0.03133112]
[1731150871005,0.0425751,3052.5,3051.6,0.765]
[1731150871213,0.0425751,3052.5,3051.7,0.03130004]
[1731150873277,0.7712,3052.4,3051.7,0.03130004]
[1731150873482,0.7712,3052.2,3051.7,0.03130004]
[1731150873678,0.0425751,3052.1,3051.0,0.7782]
[1731150874119,0.0425751,3052.1,3051.1,0.03155937]
[1731150876442,3.48293962,3052.0,3051.1,0.03155937]
[1731150876620,0.7712,3051.8,3051.1,0.03155937]
[1731150876928,0.7712,3051.5,3050.3,0.7782]
[1731150877095,0.7712,3051.3,3050.3,0.7782]
[1731150877432,0.0425751,3051.2,3050.3,0.7782]
[1731150879403,0.0425751,3051.2,3050.4,0.03122841]
[1731150883209,0.7613,3051.6,3050.5,0.88695622]
[1731150883397,0.0425751,3051.8,3050.6,0.03109543]
[1731150883398,0.8038751,3051.8,3050.6,0.03109543]
[1731150883602,0.8038751,3051.8,3050.7,0.8214]
[1731150893303,0.0425751,3051.8,3050.7,0.8214]
[1731150893509,0.0425751,3051.9,3050.9,0.7511]
[1731150894131,0.0425751,3051.9,3051.0,0.03083594]
[1731150896448,0.782,3051.8,3051.0,0.03083594]
[1731150896611,0.0425751,3051.7,3051.0,0.03083594]
[1731150896814,0.0425751,3051.7,3050.9,0.7511]
[1731150902074,0.0425751,3051.7,3050.0,5.71173962]
[1731150902253,3.0,3051.9,3050.0,5.71173962]
[1731150902254,0.8283,3051.6,3050.2,0.7643]
[1731150902450,0.0425751,3051.5,3050.2,0.7643]
[1731150902656,0.0425751,3051.5,3050.4,0.7643]
[1731150903179,0.0425751,3051.5,3050.5,0.03126744]
[1731150904378,0.0425751,3051.5,3050.6,0.7643]
[1731150904585,0.0425751,3051.5,3050.7,0.03116554]
[1731150905383,0.0425751,3051.5,3050.8,0.7643]
[1731150905590,2.71173962,3052.0,3051.0,0.7643]
[1731150905591,0.0425751,3051.8,3051.0,0.7643]
[1731150905885,0.0425751,3051.8,3051.1,0.03097614]
[1731150906561,0.0425751,3051.9,3051.1,0.03097614]
[1731150907248,0.0425751,3051.9,3051.0,0.7643]
[1731150907449,0.0425751,3051.9,3051.1,0.03097614]
[1731150907871,0.0425751,3051.9,3051.0,0.7643]
[1731150908274,0.0425751,3051.9,3051.1,0.03097614]
[1731150908680,0.0425751,3051.9,3051.0,0.7643]
[1731150909088,0.0425751,3051.9,3051.1,0.03097614]
[1731150909345,0.0425751,3051.9,3051.0,0.7643]
[1731150909560,0.0425751,3051.9,3051.1,0.03097614]
[1731150909758,0.0425751,3051.9,3051.0,0.7643]
[1731150910051,0.0425751,3051.9,3051.1,0.03097614]
[1731150910361,1.363,3051.8,3051.0,0.7643]
[1731150910562,0.0425751,3051.7,3051.0,0.7643]
[1731150912103,0.813,3051.5,3050.3,0.7593]
[1731150912387,0.0425751,3051.4,3050.4,0.03130883]
[1731150912587,0.0425751,3051.4,3050.3,0.7593]
[1731150913762,0.813,3051.3,3050.4,0.03130883]
[1731150913964,0.0425751,3051.2,3050.3,0.7593]
[1731150914163,0.0425751,3051.2,3050.4,0.03132437]
[1731150914356,0.0425751,3051.2,3050.3,0.7593]
[1731150914558,0.0425751,3051.2,3050.4,0.03133991]
[1731150914792,0.0425751,3051.2,3050.3,0.7593]
[1731150915054,0.0425751,3051.2,3050.4,0.03133991]
[1731150915368,0.0425751,3051.2,3050.3,0.7593]
[1731150915562,0.0425751,3051.2,3050.4,0.03133991]
[1731150915766,0.0425751,3051.2,3050.3,0.7593]
[1731150915976,0.0425751,3051.2,3050.4,0.03133991]
[1731150916178,0.0425751,3051.2,3050.3,0.7593]
[1731150916375,0.0425751,3051.2,3050.4,0.03133991]
[1731150916690,0.0425751,3051.2,3050.3,0.7593]
[1731150917195,0.0425751,3051.2,3050.4,0.03133991]
[1731150917386,0.0425751,3051.2,3050.3,0.7593]
[1731150917597,0.0425751,3051.2,3050.4,0.03133991]
[1731150917779,0.0425751,3051.2,3050.3,0.7593]
[1731150917980,0.0425751,3051.2,3050.4,0.03133991]
[1731150918185,0.0425751,3051.2,3050.3,0.7593]
[1731150918494,0.0425751,3051.2,3050.4,0.03133991]
[1731150918873,0.0425751,3051.2,3050.3,0.7593]
[1731150919167,0.0425751,3051.2,3050.4,0.03133991]
[1731150919373,0.0425751,3051.2,3050.3,0.7593]
[1731150919588,0.0425751,3051.2,3050.4,0.03133991]
[1731150920093,0.0425751,3051.2,3050.3,0.7593]
[1731150920508,0.813,3051.1,3050.4,0.03133991]
[1731150920701,0.813,3050.9,3050.4,0.03133991]
[1731150920904,3.0,3051.1,3049.3,0.34218628]
[1731150920905,0.8555751,3050.8,3049.9,0.7593]
[1731150921196,1.41193112,3050.8,3049.9,0.7593]
[1731150921399,0.813,3050.7,3049.9,0.7593]
[1731150921561,0.0425751,3050.6,3049.9,0.7593]
[1731150921761,0.0425751,3050.6,3049.2,0.8044]
[1731150921957,0.0425751,3050.6,3049.4,0.8044]
[1731150922218,0.0425751,3050.6,3049.5,0.03198668]
[1731150924107,0.7721,3050.5,3049.5,0.03198668]
[1731150924257,0.0425751,3050.4,3049.5,0.03198668]
[1731150924795,0.0425751,3050.4,3049.4,0.8044]
[1731150925562,0.0425751,3050.4,3049.5,0.0320903]
[1731150925759,0.7721,3050.8,3049.6,0.8044]
[1731150925966,0.7721,3051.1,3049.8,0.8044]
[1731150926299,0.7721,3051.1,3050.0,0.8044]
[1731150926711,0.7721,3051.1,3050.2,0.8105]
[1731150931815,0.55,3050.8,3049.2,0.8105]
[1731150932099,1.17548396,3050.7,3049.4,0.8105]
[1731150932478,0.55,3050.6,3049.4,0.8105]
[1731150933281,0.55,3050.6,3049.6,0.8105]
[1731150933818,0.55,3050.6,3049.7,0.03193572]
[1731150934022,0.1725484,3050.5,3049.7,0.03193572]
[1731150934597,0.1725484,3050.5,3049.6,0.8105]
[1731150934809,0.1725484,3050.5,3049.7,0.03193572]
[1731150936632,0.1725484,3050.5,3049.6,0.8105]
[1731150938626,0.7721,3050.4,3049.6,0.8105]
[1731150939414,0.1725484,3050.5,3049.6,0.8105]
[1731150939736,1.17548396,3050.7,3049.8,0.8105]
[1731150939947,0.7721,3050.7,3049.8,0.8105]
[1731150940249,1.71211637,3051.4,3049.9,0.03191827]
[1731150940250,0.7721,3051.0,3049.9,0.03191827]
[1731150940454,0.7721,3051.0,3050.0,0.8105]
[1731150944156,3.55,3050.9,3050.0,0.8105]
[1731150944525,0.55,3050.9,3050.0,0.8105]
[1731150944754,0.43221,3050.8,3050.0,0.8105]
[1731150949245,0.65783177,3050.7,3050.0,0.8105]
[1731150949551,0.7885,3050.6,3050.0,0.8105]
[1731150955319,0.55,3050.5,3048.8,0.8012]
[1731150955558,3.55,3050.5,3048.8,0.8012]
[1731150955731,3.55,3050.5,3049.0,0.8012]
[1731150955732,0.70502396,3050.4,3049.0,0.8012]
[1731150956057,0.55,3050.3,3049.1,0.03242019]
[1731150956281,0.55,3050.3,3049.1,0.83362019]
[1731150960906,0.55,3050.1,3049.1,0.83362019]
[1731150961991,2.07437998,3050.4,3049.1,0.83362019]
[1731150962191,0.55,3050.3,3049.3,0.7696]
[1731150964391,0.55,3050.1,3049.3,0.7696]
[1731150964615,0.55,3050.1,3049.4,0.03225805]
[1731150964779,3.55,3050.3,3049.3,0.7696]
[1731150964982,0.563438,3050.2,3049.3,0.7696]
[1731150965486,0.55,3050.1,3049.3,0.7696]
[1731150966021,0.55,3050.1,3049.4,0.03225805]
[1731150966203,0.55,3050.1,3049.3,0.7696]
[1731150966405,0.563438,3050.2,3049.4,0.03225805]
[1731150966621,3.55,3050.4,3049.4,0.7696]
[1731150967482,1.36935602,3050.6,3049.4,0.7696]
[1731150967685,1.36935602,3050.8,3049.6,0.8014]
[1731150967990,1.36935602,3050.9,3049.6,0.8014]
[1731150968189,2.02404807,3050.9,3049.6,0.8014]
[1731150968591,0.65469205,3050.9,3049.6,0.8014]
[1731150968797,2.02404807,3050.9,3049.6,0.8014]
[1731150969727,0.65469205,3050.9,3049.6,0.8014]
[1731150971436,1.65925316,3051.1,3049.7,0.86697125]
[1731150971730,4.36935602,3051.2,3049.9,0.8014]
[1731150971936,1.36935602,3051.2,3049.9,0.8669676]
[1731150972621,5.01389359,3051.3,3049.9,0.86696745]
[1731150972821,1.49414319,3051.2,3049.9,0.86696745]
[1731150973499,3.0,3051.1,3049.9,0.8014]
[1731150974141,5.86349921,3051.2,3049.9,0.8014]
[1731150974434,4.49414319,3051.2,3049.9,0.8014]
[1731150974641,0.65080368,3051.1,3049.9,0.8014]
[1731150976326,4.36935602,3051.3,3049.9,0.8014]
[1731150976531,1.36935602,3051.3,3049.9,0.8014]
[1731150977357,1.36935602,3051.3,3049.9,0.86696482]
[1731150977924,1.36935602,3051.3,3049.9,0.8014]
[1731150978150,2.06083036,3051.3,3049.9,0.86696482]
[1731150978662,0.69147434,3051.3,3049.9,0.86696482]
[1731150979016,0.6625598,3051.4,3050.3,0.7732]
[1731150979321,4.82758568,3052.0,3050.5,0.7732]
[1731150979322,1.36935602,3051.8,3050.5,0.7732]
[1731150979525,1.36935602,3051.9,3050.5,0.7732]
[1731150979740,0.48617956,3051.8,3050.5,0.7732]
[1731150980220,0.66196998,3051.5,3050.5,0.7732]
[1731150981339,3.48617956,3051.8,3050.6,0.06555546]
[1731150981651,0.55,3051.9,3050.4,0.7732]
[1731150981864,1.7739356,3051.9,3050.5,0.85565425]
[1731150982961,0.55,3051.9,3050.5,0.85565425]
[1731150986839,0.64962931,3052.0,3050.5,0.7901]
[1731150988062,3.0,3052.2,3050.5,0.7901]
[1731150988567,3.66199042,3052.2,3050.5,0.7901]
[1731150988726,0.66199042,3052.2,3050.6,0.8257]
[1731150988936,0.66199042,3052.2,3050.8,0.8257]
[1731150989250,3.18220966,3052.5,3051.0,0.8257]
[1731150989251,0.55,3052.5,3051.0,0.8257]
[1731150989461,0.55,3052.5,3051.2,0.8257]
[1731150989775,0.55,3052.3,3051.2,0.8257]
[1731150989928,0.55,3052.5,3051.2,0.8257]
[1731150990432,3.55,3052.5,3051.2,0.8257]
[1731150990960,3.0,3052.2,3051.2,0.8257]
[1731150993491,0.66539768,3052.4,3051.2,0.8257]
[1731150993765,3.0,3052.8,3051.4,0.8257]
[1731150993971,0.36026321,3052.7,3051.6,0.8257]
[1731150994333,1.51496341,3053.7,3051.6,0.8257]
[1731150994334,0.46163772,3053.3,3051.6,0.8257]
[1731150994533,1.11509631,3053.3,3051.6,0.8257]
[1731150994772,2.71173962,3053.2,3051.6,0.8257]
[1731150994990,2.72173962,3053.2,3051.6,0.8257]
[1731150995136,0.8193,3053.1,3051.6,0.8257]
[1731150995471,2.71173962,3052.9,3051.6,0.8257]
[1731150995967,3.55,3052.8,3051.6,0.8257]
[1731151000363,0.43925144,3053.0,3051.6,0.8257]
[1731151000571,3.8193,3053.1,3051.6,0.8257]
[1731151001944,0.55,3053.0,3051.7,0.06552855]
[1731151002169,0.55,3053.1,3051.5,0.796]
[1731151002473,1.11509631,3053.3,3051.6,0.796]
[1731151003177,0.46163772,3053.3,3051.6,0.796]
[1731151003482,0.85866545,3053.3,3051.6,0.796]
[1731151004444,0.39702773,3053.3,3051.6,0.796]
[1731151005737,0.39702773,3053.3,3051.6,0.86152194]
[1731151006258,0.39702773,3053.3,3051.6,0.796]
[1731151007081,0.39702773,3053.3,3051.7,0.06552195]
[1731151007243,0.39702773,3053.3,3051.8,0.781]
[1731151007440,0.39702773,3053.3,3051.5,0.27117396]
[1731151007441,0.39702773,3053.3,3051.9,0.84652195]
[1731151010272,0.39702773,3053.3,3051.9,0.781]
[1731151010679,0.39702773,3053.3,3052.1,0.781]
[1731151012080,3.55,3053.1,3052.1,0.781]
[1731151012985,0.55,3052.7,3052.1,0.781]
[1731151014975,0.55,3052.7,3051.1,2.71173962]
[1731151015212,2.71173962,3051.8,3051.1,0.781]
[1731151015375,3.82117396,3051.7,3051.1,0.781]
[1731151017176,3.55,3051.4,3050.8,0.781]
[1731151017615,3.55,3051.4,3049.3,2.71173962]
[1731151017818,3.55,3051.4,3049.4,0.781]
[1731151018111,0.55,3051.2,3049.7,0.781]
[1731151018325,0.55,3051.2,3049.9,0.781]
[1731151019114,2.71173962,3050.9,3049.9,0.781]
[1731151019422,0.55,3050.7,3049.9,0.781]
[1731151020804,2.71173962,3050.6,3049.9,0.781]
[1731151020998,3.87617396,3050.5,3049.9,0.781]
[1731151021215,3.87617396,3050.5,3049.9,0.751]
[1731151021399,0.87617396,3050.5,3049.9,0.751]
[1731151021614,0.55,3050.7,3049.9,0.751]
[1731151023694,3.0,3051.1,3049.9,0.751]
[1731151025388,0.55,3051.0,3049.9,0.751]
[1731151026722,3.0,3051.1,3049.9,0.751]
[1731151028532,0.55,3051.2,3049.9,0.751]
[1731151029102,3.55,3051.2,3049.9,0.751]
[1731151029288,0.4254894,3051.1,3049.9,0.751]
[1731151029635,0.55,3051.2,3049.9,0.751]
[1731151030690,3.26173962,3051.2,3049.9,0.751]
[1731151030897,0.55,3051.0,3049.9,0.751]
[1731151037442,0.70489396,3051.3,3050.1,0.7823]
[1731151037605,0.55,3051.3,3050.1,0.7823]
[1731151038014,0.27117396,3051.7,3050.3,0.7823]
[1731151038619,0.27117396,3051.7,3050.5,0.7823]
[1731151039155,2.71173962,3051.5,3050.5,0.7823]
[1731151039970,3.55,3051.4,3050.5,0.7823]
[1731151040138,0.62617396,3051.3,3050.5,0.7823]
[1731151041456,2.71173962,3051.2,3050.5,0.7823]
[1731151041609,0.55,3051.0,3050.5,0.7823]
[1731151044045,0.55,3050.7,3049.1,0.8179]
[1731151044251,3.55,3050.5,3049.3,0.8179]
[1731151049261,0.355,3050.6,3049.5,0.7809]
[1731151049433,3.0,3050.8,3049.5,0.7809]
[1731151050623,4.48083274,3051.1,3049.5,0.7809]
[1731151050825,0.55,3051.0,3049.5,0.7809]
[1731151053151,3.0,3051.1,3049.5,0.7809]
[1731151053385,0.57117396,3051.0,3049.7,0.7809]
[1731151056485,0.57117396,3051.0,3049.9,0.7809]
[1731151056848,0.55,3051.2,3049.9,0.7809]
[1731151057189,1.29688946,3051.3,3049.9,0.7809]
[1731151057547,1.29688946,3051.3,3050.1,0.7809]
[1731151060482,1.0220082,3051.2,3050.1,0.7809]
[1731151060654,4.0220082,3051.2,3050.1,0.7809]
[1731151060860,0.83188977,3051.1,3050.1,0.7809]
[1731151062269,5.31889766,3051.3,3050.1,0.7809]
[1731151063149,1.0220082,3051.4,3050.3,0.7905]
[1731151063648,1.0220082,3051.5,3050.3,0.7905]
[1731151063979,4.0220082,3051.4,3050.3,0.7905]
[1731151064185,1.0220082,3051.3,3050.3,0.7905]
[1731151064390,1.5605004,3051.2,3050.3,0.7905]
[1731151064690,4.5605004,3051.2,3050.3,0.7905]
[1731151065352,1.5605004,3051.2,3050.3,0.7905]
[1731151066254,4.5720082,3051.1,3050.3,0.7905]
[1731151066458,1.0220082,3051.0,3050.3,0.7905]
[1731151066757,1.6155004,3050.9,3050.3,0.7905]
[1731151067393,4.6155004,3050.9,3050.3,0.7905]
[1731151068489,4.0220082,3050.8,3050.3,0.7905]
[1731151068788,0.5934922,3050.9,3050.3,0.7905]
[1731151068995,4.6155004,3050.9,3050.3,0.7905]
[1731151069202,0.46155004,3050.8,3050.3,0.7905]
[1731151072600,1.0220082,3051.2,3050.3,0.8025]
[1731151072798,1.0220082,3051.3,3050.3,0.8025]
[1731151073009,1.0220082,3051.4,3050.3,0.8025]
[1731151073176,1.2605004,3051.4,3050.3,0.8025]
[1731151073369,1.2605004,3051.4,3050.4,0.06555503]
[1731151073572,0.2384922,3051.4,3050.5,0.8202]
[1731151077538,1.0220082,3051.2,3050.5,0.8202]
[1731151079470,4.0220082,3051.3,3050.5,0.8202]
[1731151079669,1.0220082,3051.1,3050.5,0.8202]
[1731151080007,4.0220082,3051.1,3050.5,0.8202]
[1731151080503,1.0220082,3051.1,3050.5,0.8202]
[1731151081342,1.0220082,3051.0,3050.5,0.8202]
[1731151085102,4.8056082,3051.0,3050.5,0.8202]
[1731151085304,0.9168522,3050.9,3050.5,0.8202]
[1731151085504,3.9168522,3050.9,3050.5,0.8202]
[1731151088849,0.55,3050.8,3050.3,0.7803]
[1731151089063,1.0220082,3050.5,3050.3,0.012]
[1731151089352,1.36291379,3050.5,3050.3,0.012]
[1731151089511,1.0292089,3050.4,3050.3,0.012]
[1731151090849,4.0292089,3050.5,3050.3,0.012]
[1731151091034,1.0292089,3050.5,3050.3,0.012]
[1731151091211,0.45792089,3050.4,3050.3,0.012]
[1731151092826,1.0292089,3050.5,3050.3,0.012]
[1731151093018,1.0292089,3050.6,3050.3,0.012]
[1731151093218,4.0292089,3050.7,3050.3,0.012]
[1731151093761,4.0292089,3050.7,3050.4,0.7683]
[1731151095445,1.0292089,3050.7,3050.4,0.7683]
[1731151095828,1.0292089,3050.8,3050.4,0.7683]
[1731151096212,1.0292089,3050.9,3050.4,0.7683]
[1731151096412,1.0292089,3050.8,3050.4,0.7683]
[1731151097814,1.0292089,3050.9,3050.4,0.7683]
[1731151098018,1.0292089,3051.0,3050.4,0.7683]
[1731151099157,1.0292089,3051.1,3050.4,0.7683]
[1731151099714,1.0292089,3051.2,3050.4,0.7683]
[1731151099951,1.0292089,3051.2,3050.3,0.012]
[1731151099952,1.0292089,3051.3,3050.5,0.06556289]
[1731151100155,1.0292089,3051.4,3050.6,0.7683]
[1731151100357,1.0292089,3051.5,3050.6,0.7683]
[1731151100528,1.92201979,3051.4,3050.6,0.7683]
[1731151100719,1.0292089,3051.3,3050.6,0.7683]
[1731151101225,1.0292089,3051.5,3050.6,0.7683]
[1731151101617,1.0292089,3051.6,3050.6,0.7683]
[1731151104461,1.0292089,3051.7,3050.6,0.7683]
[1731151105331,4.0292089,3051.8,3050.4,0.8307]
[1731151106048,1.5792089,3051.6,3050.4,0.8307]
[1731151106361,4.0292089,3051.5,3050.4,0.8307]
[1731151107461,1.0292089,3052.2,3051.1,0.825]
[1731151107659,1.0292089,3052.6,3051.4,2.71173962]
[1731151107872,1.0292089,3052.8,3051.5,0.825]
[1731151108532,1.0292089,3053.0,3051.5,0.825]
[1731151108872,0.55,3052.9,3051.5,0.825]
[1731151109071,1.0292089,3053.0,3052.1,2.71173962]
[1731151109271,2.05760473,3053.6,3052.1,2.71173962]
[1731151109272,1.0292089,3053.7,3052.5,0.825]
[1731151109428,1.0292089,3053.9,3052.5,0.825]
[1731151109631,1.0292089,3054.1,3052.6,0.06551093]
[1731151109831,0.6543336,3053.8,3052.4,0.825]
[1731151110276,1.0292089,3054.1,3052.4,0.825]
[1731151110584,0.2904829,3054.0,3052.4,0.825]
[1731151110735,0.51270632,3054.2,3052.4,0.825]
[1731151111067,0.55,3054.1,3052.4,0.825]
[1731151114373,0.55,3053.9,3052.4,0.825]
[1731151121498,0.55,3053.9,3052.6,0.8067]
[1731151122061,0.55,3054.1,3052.8,0.7807]
[1731151122265,0.55,3054.1,3053.0,0.7807]
[1731151123310,0.05695754,3055.0,3053.1,0.84620464]
[1731151123610,0.65309917,3054.7,3053.1,0.7807]
[1731151123785,0.65309917,3054.7,3053.3,0.7807]
[1731151123967,8.64873963,3055.1,3053.3,0.7807]
[1731151124616,3.0,3055.0,3053.3,0.7807]
[1731151125269,0.66377244,3054.8,3053.3,0.7807]
[1731151126003,0.55,3054.7,3053.3,0.7807]
[1731151128018,0.42137724,3054.6,3053.3,0.7807]
[1731151129997,0.42137724,3054.6,3053.3,0.84619502]
[1731151130537,0.42137724,3054.6,3053.3,0.84619501]
[1731151131403,0.55,3054.7,3053.3,0.7807]
[1731151131627,0.55,3054.7,3053.3,0.84619519]
[1731151133143,0.66377244,3054.8,3053.4,0.7614]
[1731151133648,0.51246298,3055.4,3054.0,0.7614]
[1731151133942,0.0900828,3055.5,3054.2,0.7614]
[1731151135013,0.0900828,3055.5,3054.3,0.8268771]
[1731151136243,0.0900828,3055.5,3054.3,0.7614]
[1731151136549,0.0900828,3055.5,3054.5,0.7614]
[1731151138739,0.0400828,3055.5,3054.5,0.7614]
[1731151142143,0.0400828,3055.5,3054.5,2.71173962]
[1731151142348,0.0400828,3055.5,3054.6,0.8094]
[1731151144351,0.0400828,3055.5,3054.8,2.71173962]
[1731151144650,0.0400828,3055.5,3055.0,0.8094]
[1731151147218,0.0669124,3057.3,3055.2,0.8138]
[1731151147420,2.71173962,3057.1,3055.4,0.8138]
[1731151147636,0.27117396,3057.0,3055.6,0.8138]
[1731151147958,0.66304994,3056.7,3055.6,0.8138]
[1731151148153,0.27117396,3057.0,3055.6,0.8138]
[1731151148656,0.6611435,3056.8,3055.6,0.8138]
[1731151150114,3.37288312,3056.8,3055.6,0.8138]
[1731151150318,3.0,3056.1,3055.6,0.8138]
[1731151150619,3.0,3056.1,3054.6,0.8138]
[1731151151356,3.7513,3056.4,3054.6,0.8138]
[1731151153066,0.55,3056.0,3054.6,0.8138]
[1731151153628,0.7513,3055.9,3054.6,0.8138]
[1731151153836,0.55,3055.8,3054.6,0.8138]
[1731151154037,0.19683962,3055.7,3054.6,0.8138]
[1731151154861,3.26173962,3055.6,3054.6,0.8138]
[1731151155025,0.55,3055.6,3054.6,0.8138]
[1731151155361,0.19683962,3055.7,3054.6,0.8138]
[1731151157967,0.55,3055.6,3054.6,0.8138]
[1731151158544,0.92468396,3055.6,3054.6,0.8138]
[1731151161056,0.37468396,3055.6,3054.6,0.8138]
[1731151161463,0.19683962,3055.7,3054.6,0.8138]
[1731151161681,0.55,3055.8,3054.6,0.8138]
[1731151164659,3.55,3055.8,3054.6,0.8138]
[1731151165171,0.55,3055.6,3054.6,0.8138]
[1731151165371,2.71173962,3055.5,3054.6,0.8138]
[1731151165686,3.0,3055.4,3054.6,0.8138]
[1731151165860,0.57117396,3055.3,3054.6,0.8138]
[1731151167209,3.0,3055.1,3054.6,0.8138]
[1731151167374,3.0,3054.8,3054.3,0.7646]
[1731151167563,0.55,3054.7,3054.3,0.7646]
[1731151168563,3.0,3054.8,3054.3,0.7646]
[1731151168767,0.3,3054.7,3054.3,0.7646]
[1731151168996,1.02478653,3054.9,3054.3,0.7646]
[1731151170305,4.66861784,3054.9,3054.3,0.7646]
[1731151171593,0.55,3054.7,3054.3,0.7646]
[1731151171910,3.55,3054.5,3052.8,0.7646]
[1731151172069,3.55,3054.5,3052.7,2.71173962]
[1731151172070,0.70674396,3054.4,3053.0,0.7646]
[1731151172471,0.55,3054.3,3053.0,0.7646]
[1731151172707,3.0,3053.9,3053.0,0.7646]
[1731151173116,0.55,3053.8,3053.0,0.7646]
[1731151173278,0.355,3053.7,3053.0,0.7646]
[1731151174514,3.0,3053.6,3053.0,0.7646]
[1731151175235,0.55,3053.5,3053.0,0.7646]
[1731151180215,0.65219738,3053.7,3053.0,0.7646]
[1731151180719,3.0,3053.5,3053.0,0.7646]
[1731151180924,0.65174396,3053.4,3053.0,0.7646]
[1731151182201,0.65219738,3053.7,3053.0,0.7646]
[1731151183016,0.55,3053.6,3053.0,0.7646]
[1731151183592,3.26173962,3053.6,3053.0,0.7646]
[1731151183826,3.0,3053.5,3053.0,0.7646]
[1731151184021,0.55,3053.4,3053.0,0.7646]
[1731151184228,1.17617396,3053.4,3053.0,0.7646]
[1731151185298,1.17617396,3053.4,3051.8,0.7563]
[1731151186393,3.0,3053.1,3051.8,0.7563]
[1731151188142,3.0,3053.1,3051.9,0.81752554]
[1731151189535,3.66284628,3053.1,3051.9,0.81752554]
[1731151191202,4.30030487,3053.1,3051.9,0.81752554]
[1731151193944,3.66284628,3053.1,3051.9,0.81752554]
[1731151194252,3.0,3053.1,3051.9,0.81752554]
[1731151194544,4.17617396,3053.4,3051.9,0.81752554]
[1731151195856,0.6663981,3053.2,3051.9,0.81752554]
[1731151196214,0.6663981,3053.2,3051.9,0.752]
[1731151196405,1.15065531,3053.2,3051.9,0.752]
[1731151198027,1.15065531,3053.2,3052.0,0.81752306]
[1731151200349,1.15065531,3053.2,3052.0,0.752]
[1731151208126,0.48425721,3053.2,3052.0,0.752]
[1731151208547,0.55,3053.1,3052.0,0.752]
[1731151208761,2.71173962,3052.9,3052.0,0.752]
[1731151209125,3.55,3052.8,3052.0,0.752]